bitfinex-derivatives/quotes_BTCF0:USTF0_20240907
["timestamp","ask_amount","ask_price","bid_price","bid_amount"]
[1725749464966,0.092593,54002.0,54001.0,0.10451222]
[1725749466361,0.192593,54002.0,54001.0,0.10551222]
[1725749466670,0.192593,54002.0,54001.0,0.01391722]
[1725749470383,0.192593,54002.0,54001.0,0.0879651]
[1725749471381,0.192593,54002.0,54001.0,0.01391722]
[1725749474471,0.192593,54002.0,54001.0,0.08797145]
[1725749474673,0.192593,54002.0,54001.0,0.01391722]
[1725749474877,0.285186,54002.0,54001.0,0.01391722]
[1725749475176,1.533339,54002.0,54001.0,0.002]
[1725749475381,1.533339,54002.0,53996.0,5.6e-07]
[1725749475382,0.092602,53997.0,53996.0,5.6e-07]
[1725749475676,0.092602,53997.0,53989.0,0.322]
[1725749475677,0.092614,53990.0,53989.0,0.0871038]
[1725749475880,0.092614,53990.0,53986.0,0.09260649]
[1725749475881,0.1,53990.0,53986.0,0.09260649]
[1725749476183,0.092621,53986.0,53984.0,0.092623]
[1725749476676,0.086621,53986.0,53985.0,0.092622]
[1725749477280,0.192615,53990.0,53987.0,0.092619]
[1725749477580,0.192615,53990.0,53988.0,0.092616]
[1725749477972,0.092616,53989.0,53988.0,0.092616]
[1725749478173,0.1,53990.0,53985.0,0.07396915]
[1725749478575,0.19262,53987.0,53985.0,0.16659115]
[1725749478773,0.19262,53987.0,53986.0,0.092621]
[1725749478979,0.17862,53987.0,53986.0,0.092621]
[1725749479383,0.07862,53987.0,53986.0,0.092621]
[1725749479682,0.07962,53987.0,53986.0,0.092621]
[1725749480486,0.07962,53987.0,53986.0,0.106621]
[1725749480687,0.08062,53987.0,53986.0,0.120621]
[1725749481983,0.18062,53987.0,53986.0,0.028]
[1725749483177,0.17962,53987.0,53986.0,0.01]
[1725749483481,0.18062,53987.0,53986.0,0.01]
[1725749487288,0.19304145,53987.0,53986.0,0.01]
[1725749488286,0.74872145,53987.0,53986.0,0.01]
[1725749488682,0.19304145,53987.0,53986.0,0.01]
[1725749489277,0.28566145,53987.0,53986.0,0.01]
[1725749490487,1.44134145,53987.0,53986.0,0.01]
[1725749491489,0.84134145,53987.0,53986.0,0.01]
[1725749491881,0.092635,53978.0,53976.0,0.092637]
[1725749492082,0.1,53977.0,53976.0,0.092637]
[1725749492690,0.092635,53978.0,53976.0,0.092637]
[1725749492895,0.192635,53978.0,53976.0,0.092637]
[1725749493198,0.192635,53978.0,53976.0,0.10458694]
[1725749493396,0.192635,53978.0,53976.0,0.10658694]
[1725749493782,0.192635,53978.0,53976.0,0.10458694]
[1725749493992,0.192635,53978.0,53976.0,0.10658694]
[1725749494588,0.192635,53978.0,53977.0,0.092636]
[1725749495993,0.192635,53978.0,53977.0,0.093636]
[1725749496496,0.192635,53978.0,53977.0,0.094636]
[1725749497981,0.192635,53978.0,53977.0,0.144236]
[1725749506191,0.192635,53978.0,53977.0,0.002]
[1725749508700,0.28527,53978.0,53977.0,0.002]
[1725749509086,0.28527,53978.0,53964.0,0.39482332]
[1725749509087,1.2558,53978.0,53969.0,0.01226729]
[1725749509291,0.092648,53970.0,53967.0,0.092653]
[1725749509497,0.1,53968.0,53967.0,0.092653]
[1725749509999,0.192652,53968.0,53967.0,0.092653]
[1725749510698,0.182652,53968.0,53967.0,0.092653]
[1725749511004,0.182652,53968.0,53967.0,0.10482255]
[1725749511689,0.183652,53968.0,53967.0,0.10882255]
[1725749512495,0.184652,53968.0,53967.0,0.11382255]
[1725749520098,0.094652,53968.0,53967.0,0.11382255]
[1725749534320,0.094652,53968.0,53967.0,0.18764587]
[1725749535203,0.002,53968.0,53967.0,0.18764587]
[1725749535405,0.092612,53992.0,53967.0,1.36970255]
[1725749535406,0.092619,53988.0,53967.0,1.36970255]
[1725749535716,0.192632,53980.0,53971.0,0.1]
[1725749536014,0.092632,53980.0,53979.0,0.092633]
[1725749536408,0.192632,53980.0,53979.0,0.092633]
[1725749538417,0.195632,53980.0,53979.0,0.092633]
[1725749539616,0.092635,53978.0,53973.0,0.00915058]
[1725749539817,0.1,53974.0,53973.0,0.00915058]
[1725749540417,0.003,53980.0,53972.0,0.0912]
[1725749540418,0.003,53980.0,53979.0,0.092633]
[1725749540621,0.003,53980.0,53979.0,0.10194672]
[1725749541010,0.103,53980.0,53979.0,0.10194672]
[1725749541212,0.101,53980.0,53979.0,0.00931372]
[1725749541413,0.101,53980.0,53975.0,0.092639]
[1725749541921,0.1,53980.0,53975.0,0.1021038]
[1725749542219,0.102,53980.0,53975.0,0.1021038]
[1725749542420,0.102,53980.0,53975.0,0.1061038]
[1725749542716,0.102,53980.0,53976.0,0.0454]
[1725749543515,0.1,53980.0,53976.0,0.0454]
[1725749544418,0.1,53980.0,53976.0,0.0474]
[1725749545520,0.1,53980.0,53976.0,0.0494]
[1725749546723,0.192631,53980.0,53976.0,0.0494]
[1725749548914,0.1,53977.0,53976.0,0.0494]
[1725749550717,0.192636,53977.0,53976.0,0.0494]
[1725749552024,0.192636,53977.0,53976.0,0.004]
[1725749554820,0.285272,53977.0,53976.0,0.004]
[1725749555317,0.377908,53977.0,53976.0,0.004]
[1725749556223,1.533708,53977.0,53976.0,0.004]
[1725749557327,0.092653,53967.0,53966.0,0.321]
[1725749557534,0.092657,53965.0,53963.0,0.09266]
[1725749558419,0.087657,53965.0,53963.0,0.09266]
[1725749558618,0.087657,53965.0,53963.0,0.10495381]
[1725749559029,0.088657,53965.0,53963.0,0.10995381]
[1725749559331,0.088657,53965.0,53964.0,0.07399281]
[1725749559828,0.082657,53965.0,53964.0,0.07399281]
[1725749560236,0.182657,53965.0,53964.0,0.07399281]
[1725749560734,0.183657,53965.0,53964.0,0.07999281]
[1725749565422,0.083657,53965.0,53964.0,0.17265081]
[1725749565622,0.083657,53965.0,53964.0,0.098658]
[1725749567733,0.002,53965.0,53964.0,0.098658]
[1725749567938,0.002,53965.0,53964.0,0.654578]
[1725749568435,0.002,53965.0,53964.0,0.72854899]
[1725749568625,0.002,53965.0,53964.0,0.654578]
[1725749568831,0.002,53965.0,53964.0,0.098658]
[1725749569740,0.002,53965.0,53964.0,0.17262865]
[1725749570043,0.002,53965.0,53964.0,0.098658]
[1725749570933,0.002,53965.0,53964.0,0.72855073]
[1725749571241,0.002,53965.0,53964.0,0.654578]
[1725749571831,0.002,53965.0,53964.0,0.098658]
[1725749580040,0.002,53965.0,53964.0,0.191316]
[1725749580541,0.002,53965.0,53964.0,0.28359515]
[1725749581138,0.002,53965.0,53964.0,0.191316]
[1725749581454,0.002,53965.0,53964.0,0.28359515]
[1725749582145,0.002,53965.0,53964.0,0.42476812]
[1725749582643,0.002,53965.0,53964.0,0.98068812]
[1725749582847,0.002,53965.0,53964.0,0.98098736]
[1725749583344,0.002,53965.0,53964.0,0.88840897]
[1725749583938,0.002,53965.0,53964.0,0.9810056]
[1725749584144,0.002,53965.0,53964.0,0.88841129]
[1725749584843,0.002,53965.0,53964.0,0.42510006]
[1725749585039,0.002,53965.0,53964.0,0.28392477]
[1725749585239,0.002,53965.0,53964.0,0.191316]
[1725749585445,0.002,53965.0,53964.0,0.28392477]
[1725749585654,0.002,53965.0,53964.0,0.42510248]
[1725749586365,0.002,53965.0,53964.0,0.191316]
[1725749586550,0.002,53965.0,53964.0,0.4251028]
[1725749586755,0.002,53965.0,53964.0,0.28392477]
[1725749587150,0.002,53965.0,53964.0,0.42510092]
[1725749587856,0.002,53965.0,53964.0,0.191316]
[1725749594366,0.002,53965.0,53964.0,0.28392477]
[1725749594671,0.002,53965.0,53964.0,0.191316]
[1725749594859,0.002,53965.0,53964.0,0.28392477]
[1725749595160,0.002,53965.0,53964.0,0.191316]
[1725749595559,0.002,53965.0,53964.0,0.28392477]
[1725749595764,0.002,53965.0,53964.0,0.33248791]
[1725749599056,0.092646,53972.0,53971.0,0.092646]
[1725749600362,0.094646,53972.0,53971.0,0.092646]
[1725749602283,0.094646,53972.0,53971.0,0.10509306]
[1725749603783,0.094646,53972.0,53971.0,0.160687]
[1725749606783,0.094646,53972.0,53971.0,0.10509306]
[1725749620985,0.094646,53972.0,53971.0,0.17924303]
[1725749621183,0.094646,53972.0,53971.0,0.07414997]
[1725749621385,0.094646,53972.0,53968.0,0.092651]
[1725749621386,0.09265,53969.0,53968.0,0.092651]
[1725749621588,0.19265,53969.0,53968.0,0.092651]
[1725749622783,0.19365,53969.0,53968.0,0.092651]
[1725749623090,0.19365,53969.0,53968.0,0.16677111]
[1725749623288,0.19365,53969.0,53968.0,0.10475253]
[1725749625895,0.19465,53969.0,53968.0,0.17986698]
[1725749626096,0.19465,53969.0,53968.0,0.10575253]
[1725749626693,0.19465,53969.0,53968.0,0.17986698]
[1725749626897,0.19465,53969.0,53968.0,0.10575253]
[1725749631195,0.19465,53969.0,53968.0,0.17986698]
[1725749632786,0.19465,53969.0,53968.0,0.10575253]
[1725749635401,0.19465,53969.0,53968.0,0.01310153]
[1725749635602,1.35053,53969.0,53968.0,0.001]
[1725749635804,1.35053,53969.0,53965.0,0.07411234]
[1725749635995,0.192655,53966.0,53965.0,0.05558848]
[1725749636303,0.09266,53963.0,53962.0,0.05558848]
[1725749636500,0.092664,53961.0,53960.0,0.10491944]
[1725749637099,0.091664,53961.0,53960.0,0.16045813]
[1725749637795,0.092664,53961.0,53960.0,0.16145813]
[1725749638005,0.001,53961.0,53960.0,0.10591944]
[1725749638197,0.001,53961.0,53960.0,0.16144084]
[1725749639294,0.002,53961.0,53960.0,0.16144084]
[1725749640794,0.002,53961.0,53960.0,0.10591944]
[1725749641102,0.002,53961.0,53960.0,0.20591944]
[1725749641304,0.002,53961.0,53960.0,0.29858444]
[1725749641500,0.002,53961.0,53960.0,0.37269678]
[1725749641809,0.002,53961.0,53960.0,0.29858444]
[1725749642308,0.002,53961.0,53960.0,1.45454444]
[1725749642503,0.002,53961.0,53960.0,0.29858444]
[1725749647903,0.1,53967.0,53966.0,0.092655]
[1725749649409,0.101,53967.0,53966.0,0.092655]
[1725749654407,0.101,53967.0,53966.0,0.10510052]
[1725749662821,0.101,53967.0,53966.0,0.16061153]
[1725749663121,0.101,53967.0,53966.0,0.10510052]
[1725749663319,0.001,53967.0,53966.0,0.10510052]
[1725749666516,0.001,53967.0,53966.0,0.17910691]
[1725749666911,0.001,53967.0,53966.0,0.10510052]
[1725749667109,0.001,53967.0,53966.0,0.17910691]
[1725749668115,0.001,53967.0,53966.0,0.10510052]
[1725749668310,0.001,53967.0,53966.0,0.17918283]
[1725749668513,0.001,53967.0,53966.0,0.17918644]
[1725749669322,0.001,53967.0,53966.0,0.10510052]
[1725749677920,0.001,53967.0,53966.0,0.16069846]
[1725749678422,0.001,53967.0,53966.0,0.10510052]
[1725749681831,0.001,53967.0,53966.0,0.16069846]
[1725749682827,0.001,53967.0,53966.0,0.16069496]
[1725749683225,0.001,53967.0,53966.0,0.16069523]
[1725749683422,0.001,53967.0,53966.0,0.10510052]
[1725749683628,0.001,53967.0,53966.0,0.16069616]
[1725749684233,0.001,53967.0,53966.0,0.10510052]
[1725749684931,0.001,53967.0,53966.0,0.1606981]
[1725749685941,0.001,53967.0,53966.0,0.10510052]
[1725749697836,0.001,53967.0,53966.0,0.17924218]
[1725749700035,0.001,53967.0,53966.0,0.10510052]
[1725749700434,0.001,53967.0,53966.0,0.17924218]
[1725749701143,0.001,53967.0,53966.0,0.10510052]
[1725749707340,0.001,53967.0,53966.0,0.17923249]
[1725749707747,0.001,53967.0,53966.0,0.10510052]
[1725749711341,0.09264,53975.0,53967.0,0.092653]
[1725749711537,0.09264,53975.0,53974.0,0.092641]
[1725749711742,0.19264,53975.0,53974.0,0.14823207]
[1725749712549,0.1,53975.0,53974.0,0.14823207]
[1725749713252,0.106,53975.0,53974.0,0.092641]
[1725749713840,0.112,53975.0,53974.0,0.092641]
[1725749716856,0.20464,53975.0,53974.0,0.092641]
[1725749718154,0.20464,53975.0,53974.0,0.10486869]
[1725749724162,0.008,53975.0,53974.0,0.39015069]
[1725749724461,0.008,53975.0,53974.0,0.46419385]
[1725749724755,0.008,53975.0,53974.0,0.39015069]
[1725749725165,0.008,53975.0,53974.0,0.29750969]
[1725749725660,0.008,53975.0,53974.0,0.27888404]
[1725749725863,0.008,53975.0,53974.0,0.17888404]
[1725749726554,0.008,53975.0,53974.0,0.10486869]
[1725749727458,0.108,53975.0,53974.0,0.1788536]
[1725749727759,0.107,53975.0,53974.0,0.1858536]
[1725749727957,0.107,53975.0,53974.0,0.11186869]
[1725749729064,0.102,53975.0,53974.0,0.17235261]
[1725749729756,0.101,53975.0,53974.0,0.16735261]
[1725749729959,0.102,53975.0,53974.0,0.17235261]
[1725749730162,0.102,53975.0,53974.0,0.11686869]
[1725749738161,0.102,53975.0,53974.0,0.17235261]
[1725749738870,0.102,53975.0,53974.0,0.11686869]
[1725749740470,0.102,53975.0,53974.0,0.02422769]
[1725749740769,0.19464,53975.0,53974.0,0.02422769]
[1725749741162,0.28626691,53975.0,53974.0,0.02422769]
[1725749741867,0.28626691,53975.0,53974.0,0.11686869]
[1725749742070,0.28626691,53975.0,53974.0,0.02422769]
[1725749743169,0.28626691,53975.0,53974.0,0.11686869]
[1725749754385,0.18626691,53975.0,53974.0,0.11686869]
[1725749754686,0.18626691,53975.0,53974.0,0.1908536]
[1725749755078,0.18626691,53975.0,53974.0,0.11686869]
[1725749755275,0.09362691,53975.0,53974.0,0.11686869]
[1725749757486,0.09362691,53975.0,53974.0,0.1908536]
[1725749757690,0.19362691,53975.0,53974.0,0.1908536]
[1725749760387,0.19362691,53975.0,53974.0,0.11686869]
[1725749761486,0.19362691,53975.0,53974.0,0.17243361]
[1725749761692,0.19362691,53975.0,53974.0,0.11686869]
[1725749764691,0.09362691,53975.0,53974.0,0.11686869]
[1725749765098,0.09362691,53975.0,53974.0,0.1908536]
[1725749765797,0.09362691,53975.0,53974.0,0.11686869]
[1725749766181,0.09362691,53975.0,53974.0,0.19095499]
[1725749766394,0.09362691,53975.0,53974.0,0.11686869]
[1725749766582,0.09362691,53975.0,53974.0,0.30950969]
[1725749767087,0.09362691,53975.0,53974.0,0.38359572]
[1725749768394,0.09362691,53975.0,53974.0,0.30950969]
[1725749769199,0.09362691,53975.0,53974.0,0.36507338]
[1725749769987,0.09362691,53975.0,53974.0,0.30950969]
[1725749770390,0.09362691,53975.0,53974.0,0.36507338]
[1725749770591,0.09362691,53975.0,53974.0,0.86530969]
[1725749772802,0.09362691,53975.0,53974.0,0.86730969]
[1725749773190,0.09262691,53975.0,53974.0,0.86230969]
[1725749773396,0.09362691,53975.0,53974.0,0.86930969]
[1725749773795,0.09362691,53975.0,53974.0,0.94339572]
[1725749773991,0.09262691,53975.0,53974.0,0.86230969]
[1725749774193,0.09262691,53975.0,53974.0,0.86130969]
[1725749774403,0.09362691,53975.0,53974.0,0.87130969]
[1725749774803,0.09362691,53975.0,53974.0,0.31550969]
[1725749777604,0.09362691,53975.0,53974.0,0.40816192]
[1725749779213,0.09362691,53975.0,53974.0,0.31550969]
[1725749780001,0.09362691,53975.0,53974.0,0.40816192]
[1725749781104,0.09362691,53975.0,53974.0,0.50080292]
[1725749781807,0.04729019,53975.0,53974.0,0.6419454]
[1725749782002,0.04729019,53975.0,53974.0,0.54929317]
[1725749783404,0.04729019,53975.0,53974.0,0.40815069]
[1725749784611,0.04729019,53975.0,53974.0,0.48215228]
[1725749785111,0.04729019,53975.0,53974.0,0.40815069]
[1725749786102,0.04729019,53975.0,53974.0,0.41215069]
[1725749787615,0.04629019,53975.0,53974.0,0.41515069]
[1725749790512,0.04629019,53975.0,53974.0,0.55629034]
[1725749792322,0.04629019,53975.0,53974.0,0.55628828]
[1725749797319,0.04629019,53975.0,53974.0,0.55629107]
[1725749798320,0.04529019,53975.0,53974.0,0.55729107]
[1725749798631,0.04529019,53975.0,53974.0,0.41615069]
[1725749799519,0.04529019,53975.0,53974.0,0.40315069]
[1725749799722,0.04529019,53975.0,53974.0,0.41415069]
[1725749800410,0.04529019,53975.0,53974.0,0.40115069]
[1725749800610,0.04529019,53975.0,53974.0,0.41515069]
[1725749801015,0.04529019,53975.0,53974.0,0.40115069]
[1725749801323,0.04529019,53975.0,53974.0,0.41515069]
[1725749801731,0.04529019,53975.0,53974.0,0.50773091]
[1725749802227,0.04529019,53975.0,53974.0,0.41515069]
[1725749802418,0.04529019,53975.0,53974.0,0.50773091]
[1725749803516,0.04529019,53975.0,53974.0,0.41515069]
[1725749804032,0.04529019,53975.0,53974.0,0.40415069]
[1725749804221,0.04529019,53975.0,53974.0,0.41415069]
[1725749804426,0.04529019,53975.0,53974.0,0.40015069]
[1725749804731,0.04529019,53975.0,53974.0,0.41315069]
[1725749805233,0.04529019,53975.0,53974.0,0.50573091]
[1725749805528,0.04529019,53975.0,53974.0,0.66547765]
[1725749807133,2.2e-07,53976.0,53975.0,0.27792]
[1725749807315,0.0925,53992.0,53991.0,0.092612]
[1725749807515,0.047,53992.0,53991.0,0.192612]
[1725749807823,0.047,53992.0,53991.0,0.42631951]
[1725749808122,0.047,53992.0,53991.0,0.33371172]
[1725749808331,0.0476,53997.0,53996.0,0.092604]
[1725749808527,0.0476,53997.0,53996.0,0.192604]
[1725749809220,0.0476,53997.0,53996.0,0.24807598]
[1725749809732,0.0476,53997.0,53996.0,0.192604]
[1725749810229,0.092581,54010.0,53996.0,0.1]
[1725749810430,0.0949,54004.0,54003.0,0.1]
[1725749810735,0.0949,54004.0,54003.0,0.00919629]
[1725749810933,0.0949,54004.0,54000.0,0.0554364]
[1725749811227,0.1486,54003.0,53999.0,0.0554364]
[1725749811433,0.1486,54003.0,54000.0,0.092597]
[1725749811629,0.1486,54003.0,54000.0,0.10181367]
[1725749812132,0.1486,54003.0,54000.0,0.10481367]
[1725749812433,0.1486,54003.0,54001.0,0.092595]
[1725749813822,0.1486,54003.0,54002.0,0.092593]
[1725749815224,0.0486,54003.0,54002.0,0.093593]
[1725749819537,0.0486,54003.0,54002.0,0.10579532]
[1725749822729,1.396712,54003.0,54002.0,0.10579532]
[1725749822934,0.241192,54003.0,54002.0,0.10579532]
[1725749823634,1.396712,54003.0,54002.0,0.10579532]
[1725749825134,1.396712,54003.0,54002.0,0.001]
[1725749825529,1.489304,54003.0,54002.0,0.001]
[1725749825729,1.396712,54003.0,54002.0,0.001]
[1725749826326,1.489304,54003.0,54002.0,0.001]
[1725749826538,1.396712,54003.0,54002.0,0.001]
[1725749827034,1.489304,54003.0,54002.0,0.001]
[1725749827543,1.40921079,54003.0,54002.0,0.001]
[1725749827729,1.50180279,54003.0,54002.0,0.001]
[1725749827939,1.40921079,54003.0,54002.0,0.001]
[1725749828941,1.50180279,54003.0,54002.0,0.001]
[1725749829640,1.40921079,54003.0,54002.0,0.001]
[1725749830344,1.50180279,54003.0,54002.0,0.001]
[1725749830545,1.40921079,54003.0,54002.0,0.001]
[1725749832947,0.85369079,54003.0,54002.0,0.001]
[1725749833246,1.40921079,54003.0,54002.0,0.001]
[1725749833745,1.50180279,54003.0,54002.0,0.001]
[1725749833947,1.40921079,54003.0,54002.0,0.001]
[1725749834446,1.50180279,54003.0,54002.0,0.001]
[1725749834643,1.40921079,54003.0,54002.0,0.001]
[1725749835042,0.748112,54003.0,54002.0,0.001]
[1725749835241,1.348112,54003.0,54002.0,0.001]
[1725749837847,0.748112,54003.0,54002.0,0.001]
[1725749838237,0.192592,54003.0,54002.0,0.001]
[1725749838453,0.748112,54003.0,54002.0,0.001]
[1725749838654,0.192592,54003.0,54002.0,0.001]
[1725749838950,0.748112,54003.0,54002.0,0.001]
[1725749839147,0.192592,54003.0,54002.0,0.001]
[1725749839357,0.748112,54003.0,54002.0,0.001]
[1725749839555,0.192592,54003.0,54002.0,0.001]
[1725749840853,0.748112,54003.0,54002.0,0.001]
[1725749841150,1.348112,54003.0,54002.0,0.001]
[1725749842651,0.748112,54003.0,54002.0,0.001]
[1725749845158,0.192592,54003.0,54002.0,0.001]
[1725749845460,0.748112,54003.0,54002.0,0.001]
[1725749845662,0.192592,54003.0,54002.0,0.001]
[1725749851159,0.092595,54001.0,54000.0,0.1480334]
[1725749852657,0.092595,54001.0,54000.0,0.14815112]
[1725749853254,0.092595,54001.0,54000.0,0.092597]
[1725749854970,0.092595,54001.0,54000.0,0.093597]
[1725749859559,0.092595,54001.0,54000.0,0.001]
[1725749865867,0.092595,54001.0,54000.0,0.093597]
[1725749867168,0.092595,54001.0,54000.0,0.14917705]
[1725749868273,0.092595,54001.0,54000.0,0.14917227]
[1725749868976,0.092595,54001.0,54000.0,0.093597]
[1725749869580,0.092595,54001.0,54000.0,0.14917089]
[1725749869875,0.092595,54001.0,54000.0,0.093597]
[1725749871376,0.092595,54001.0,54000.0,0.14916715]
[1725749873777,0.092595,54001.0,54000.0,0.093597]
[1725749880674,0.092595,54001.0,54000.0,0.14916715]
[1725749882571,0.092595,54001.0,54000.0,0.093597]
[1725749884881,0.092595,54001.0,54000.0,0.14916575]
[1725749885682,0.092595,54001.0,54000.0,0.093597]
[1725749885882,0.092595,54001.0,54000.0,0.1491662]
[1725749886484,0.092595,54001.0,54000.0,0.093597]
[1725749895788,0.092595,54001.0,54000.0,0.14916568]
[1725749896087,0.092595,54001.0,54000.0,0.093597]
[1725749896386,0.092595,54001.0,54000.0,0.14917477]
[1725749897778,0.092595,54001.0,54000.0,0.093597]
[1725749899287,0.092595,54001.0,54000.0,0.14917504]
[1725749899689,0.092595,54001.0,54000.0,0.093597]
[1725749900278,0.092595,54001.0,54000.0,0.14917576]
[1725749903892,0.092595,54001.0,54000.0,0.093597]
[1725749909797,0.192595,54001.0,54000.0,0.093597]
[1725749910891,0.192595,54001.0,54000.0,0.14917576]
[1725749916099,0.192595,54001.0,54000.0,0.093597]
[1725749921497,0.192595,54001.0,54000.0,0.14917282]
[1725749923104,0.192595,54001.0,54000.0,0.093597]
[1725749923709,0.192595,54001.0,54000.0,0.14917282]
[1725749924609,0.092595,54001.0,54000.0,0.14917282]
[1725749924910,0.192595,54001.0,54000.0,0.14917282]
[1725749925108,0.192595,54001.0,54000.0,0.093597]
[1725749925408,0.192595,54001.0,54000.0,0.14917282]
[1725749925812,0.192595,54001.0,54000.0,0.093597]
[1725749933726,0.192595,54001.0,54000.0,0.001]
[1725749935126,0.192595,54001.0,54000.0,0.05657582]
[1725749937425,0.192595,54001.0,53989.0,0.43320935]
[1725749937426,1.25556,54001.0,53995.0,0.05557997]
[1725749937628,0.1,53996.0,53994.0,0.05557997]
[1725749937832,0.092607,53994.0,53992.0,0.05557997]
[1725749938022,0.1,53993.0,53992.0,0.05557997]
[1725749938429,0.1,53993.0,53990.0,0.05557997]
[1725749938430,0.092612,53991.0,53990.0,0.05557997]
[1725749938628,0.092612,53991.0,53987.0,0.0861464]
[1725749938629,0.1,53994.0,53991.0,0.092612]
[1725749938827,0.1,53994.0,53992.0,0.14964274]
[1725749939034,0.192607,53994.0,53993.0,0.05554274]
[1725749939334,0.187607,53994.0,53993.0,0.05554274]
[1725749941523,0.092609,53993.0,53992.0,0.14964274]
[1725749942932,0.093609,53993.0,53992.0,0.14964274]
[1725749943523,0.093609,53993.0,53992.0,0.0941]
[1725749946835,0.093609,53993.0,53992.0,0.0456]
[1725749947042,0.001,53993.0,53989.0,0.14815774]
[1725749947241,0.1,53990.0,53989.0,0.092615]
[1725749947744,0.192614,53990.0,53989.0,0.14815774]
[1725749948034,0.192614,53990.0,53989.0,0.092615]
[1725749948447,0.192614,53990.0,53989.0,0.093615]
[1725749948740,0.192614,53990.0,53989.0,0.096615]
[1725749950737,0.192614,53990.0,53989.0,0.004]
[1725749954336,0.285228,53990.0,53989.0,0.004]
[1725749955535,0.377842,53990.0,53989.0,0.004]
[1725749975044,0.277842,53990.0,53989.0,0.004]
[1725749975355,0.285228,53990.0,53989.0,0.004]
[1725750000871,0.377842,53990.0,53989.0,0.004]
[1725750001065,0.092633,53979.0,53978.0,0.0908]
[1725750002364,0.092633,53979.0,53978.0,0.11096614]
[1725750003275,0.092633,53979.0,53978.0,0.12496614]
[1725750003672,0.185266,53979.0,53978.0,0.0536]
[1725750003870,0.185266,53979.0,53978.0,0.07358713]
[1725750004077,0.185266,53979.0,53978.0,0.018]
[1725750005371,0.185266,53979.0,53978.0,0.016]
[1725750005981,0.185266,53979.0,53978.0,0.006]
[1725750006178,0.185266,53979.0,53978.0,0.008]
[1725750006682,0.092633,53979.0,53978.0,0.004]
[1725750006882,0.192633,53979.0,53978.0,0.004]
[1725750007482,0.092633,53979.0,53978.0,0.004]
[1725750007780,0.192633,53979.0,53978.0,0.004]
[1725750008079,0.192633,53979.0,53978.0,0.05958713]
[1725750008281,0.192633,53979.0,53978.0,0.004]
[1725750009375,0.192633,53979.0,53978.0,0.01600503]
[1725750009576,0.192633,53979.0,53978.0,0.004]
[1725750010782,0.192633,53979.0,53978.0,0.05958713]
[1725750010985,0.192633,53979.0,53978.0,0.004]
[1725750011179,0.01218812,53984.0,53978.0,1.15976]
[1725750011380,0.092609,53993.0,53982.0,0.092626]
[1725750011588,0.1,53988.0,53984.0,0.05550507]
[1725750011883,0.1,53988.0,53986.0,0.09262]
[1725750012582,0.192618,53988.0,53986.0,0.09262]
[1725750013182,0.194618,53988.0,53986.0,0.09362]
[1725750013577,0.092619,53987.0,53986.0,0.09362]
[1725750013782,0.092619,53987.0,53986.0,0.09462]
[1725750014787,0.092619,53987.0,53986.0,0.09362]
[1725750014992,0.094619,53987.0,53986.0,0.09462]
[1725750015780,0.099619,53987.0,53986.0,0.09462]
[1725750015981,0.099619,53987.0,53986.0,0.10655363]
[1725750016384,0.097619,53987.0,53986.0,0.10555363]
[1725750016592,0.099619,53987.0,53986.0,0.10655363]
[1725750016778,0.094619,53987.0,53986.0,0.10555363]
[1725750016978,0.099619,53987.0,53986.0,0.10555363]
[1725750020587,0.007,53987.0,53986.0,0.10555363]
[1725750024389,0.007,53987.0,53986.0,0.16101315]
[1725750024991,0.007,53987.0,53986.0,1.26123363]
[1725750025186,0.007,53987.0,53986.0,1.31668861]
[1725750025391,0.007,53987.0,53986.0,1.40930961]
[1725750025392,0.002,53987.0,53986.0,1.40930961]
[1725750025596,0.002,53987.0,53986.0,1.35385463]
[1725750026000,0.192597,54000.0,53989.0,0.092615]
[1725750026200,0.192597,54000.0,53998.0,0.092599]
[1725750026500,0.092598,53999.0,53998.0,0.092599]
[1725750029109,0.092598,53999.0,53998.0,0.093599]
[1725750035104,0.092598,53999.0,53998.0,0.092599]
[1725750035299,0.092598,53999.0,53998.0,0.095599]
[1725750035804,0.092598,53999.0,53998.0,0.094599]
[1725750037000,0.092598,53999.0,53998.0,0.093599]
[1725750049108,0.092598,53999.0,53998.0,0.001]
[1725750049300,0.092598,53999.0,53998.0,0.0936]
[1725750055209,0.092598,53999.0,53998.0,0.149035]
[1725750055606,0.092598,53999.0,53998.0,0.0936]
[1725750055820,0.092598,53999.0,53998.0,0.14917366]
[1725750056016,0.092598,53999.0,53998.0,0.14917541]
[1725750056412,0.10456372,53999.0,53998.0,0.14917541]
[1725750056612,0.10456372,53999.0,53998.0,0.0936]
[1725750057310,0.10456372,53999.0,53998.0,0.14917357]
[1725750057721,0.10456372,53999.0,53998.0,0.0936]
[1725750057908,0.10456372,53999.0,53998.0,0.14917332]
[1725750058219,0.10456372,53999.0,53998.0,0.0936]
[1725750058816,0.092598,53999.0,53998.0,0.1491725]
[1725750059523,0.092598,53999.0,53998.0,0.14917176]
[1725750060013,0.092598,53999.0,53998.0,0.14917268]
[1725750067327,0.092598,53999.0,53998.0,0.0936]
[1725750067727,0.092598,53999.0,53998.0,0.14917268]
[1725750068527,0.092598,53999.0,53998.0,0.05657268]
[1725750069029,0.092598,53999.0,53998.0,0.001]
[1725750074638,0.185196,53999.0,53998.0,0.001]
[1725750074817,0.0926,53998.0,53989.0,0.05557268]
[1725750075019,0.092617,53988.0,53987.0,0.05557268]
[1725750075222,0.1,53988.0,53985.0,0.05557268]
[1725750075432,0.1,53988.0,53984.0,0.05896355]
[1725750076336,0.1,53985.0,53984.0,0.05896355]
[1725750076831,0.1,53985.0,53984.0,0.13307584]
[1725750077431,0.1,53985.0,53984.0,0.05896355]
[1725750077631,0.088,53985.0,53984.0,0.05896355]